fUST/lending_fUST_20260119
["ID","MTS","AMOUNT","RATE_DAILY","PERIOD"]
[402689736,1768805353615,-720.0,0.00027397,120]
[402689738,1768805353652,-7000.0,0.00027397,120]
[402689814,1768805355823,-3000.0,0.00034176,120]
[402689816,1768805355853,-203765.30266235,0.00034176,120]
[402689818,1768805355880,-618.6236,0.00034176,120]
[402689820,1768805355909,-617.3462,0.00034176,120]
[402689821,1768805355937,-919.48333867,0.00034176,31]
[402689822,1768805355964,-2074.23617367,0.00034176,30]
[402689823,1768805355991,-1874.96056628,0.00034176,31]
[402689824,1768805356019,-2000.0,0.00034176,120]
[402689825,1768805356047,-2000.0,0.00034176,120]
[402689826,1768805356074,-2000.0,0.00034176,120]
[402689827,1768805356101,-2000.0,0.00034176,120]
[402689828,1768805356129,-2000.0,0.00034176,120]
[402689829,1768805356158,-2000.0,0.00034176,120]
[402689831,1768805356187,-2000.0,0.00034176,120]
[402689833,1768805356215,-2116.09173527,0.00034176,120]
[402689835,1768805356242,-490663.5211422,0.00034176,120]
[402689837,1768805356270,-500.0,0.00034176,120]
[402689839,1768805356299,-181.14522247,0.00034176,120]
[402689840,1768805356327,-1834.27081931,0.00034176,30]
[402689842,1768805356354,-2199.87173108,0.00034176,30]
[402689844,1768805356383,-2237.37033656,0.00034176,120]
[402689846,1768805356410,-1868.7622161,0.00034176,120]
[402689848,1768805356437,-288.28076281,0.00034176,120]
[402689850,1768805356464,-1559.87660624,0.00034176,30]
[402689852,1768805356492,-188.78330567,0.00034176,120]
[402689854,1768805356521,-243.55309238,0.00034176,30]
[402689857,1768805356552,-1237.4880882,0.00034176,30]
[402689858,1768805356583,-577.49105418,0.00034176,120]
[402689861,1768805356613,-416.09649516,0.00034176,120]
[402689863,1768805356642,-1013.46636993,0.00034176,120]
[402689864,1768805356671,-962.37725405,0.00034176,120]
[402689866,1768805356698,-470.54930982,0.00034176,120]
[402689868,1768805356725,-1046.38808048,0.00034176,30]
[402689870,1768805356754,-1083.42070053,0.00034176,60]
[402689872,1768805356782,-1221.03195346,0.00034176,120]
[402689874,1768805356810,-888.54190966,0.00034176,120]
[402689876,1768805356843,-265.18120541,0.00034176,30]
[402689878,1768805356872,-726.48591205,0.00034176,120]
[402689880,1768805356904,-1782.70754061,0.00034176,30]
[402689882,1768805356933,-240.82074905,0.00034176,120]
[402689884,1768805356962,-3170.25799025,0.00034176,60]
[402689886,1768805356991,-196.80347425,0.00034176,30]
[402689888,1768805357020,-213.62425804,0.00034176,30]
[402689890,1768805357049,-253.66462213,0.00034176,120]
[402689892,1768805357080,-651.39556616,0.00034176,30]
[402689894,1768805357108,-1210.38394163,0.00034176,30]
[402689896,1768805357136,-2323.13488349,0.00034176,90]
[402689905,1768805357342,-2206.49919545,0.00034176,120]
[402689907,1768805357370,-712.34951778,0.00034176,30]
[402689909,1768805357397,-1160.96880577,0.00034176,120]
[402689911,1768805357424,-1432.65112447,0.00034176,120]
[402689913,1768805357451,-1925.42527954,0.00034176,30]
[402689915,1768805357477,-582.53258539,0.00034176,120]
[402689917,1768805357507,-734.27323144,0.00034176,120]
[402689919,1768805357536,-200.0,0.00034176,120]
[402689921,1768805357566,-1058.64976633,0.00034176,120]
[402689923,1768805357592,-310.8773032,0.00034176,30]
[402689925,1768805357618,-927.90508046,0.00034176,120]
[402689927,1768805357645,-1511.73759714,0.00034176,120]
[402689929,1768805357671,-3092.59827059,0.00034176,120]
[402689930,1768805357698,-1584.61614772,0.00034176,120]
[402689933,1768805357727,-3073.02961724,0.00034176,120]
[402689935,1768805357756,-1941.81435034,0.00034176,60]
[402689937,1768805357785,-1648.79839391,0.00034176,120]
[402689939,1768805357815,-1235.27572535,0.00034176,30]
[402689941,1768805357844,-1824.41244849,0.00034176,120]
[402689943,1768805357875,-3409.83764112,0.00034176,30]
[402689945,1768805357907,-548.70845559,0.00034176,120]
[402689947,1768805357933,-226.14812602,0.00034176,120]
[402689949,1768805357959,-331.80834883,0.00034176,120]
[402689951,1768805357986,-1696.56123821,0.00034176,120]
[402689953,1768805358014,-186.42525654,0.00034176,30]
[402689954,1768805358043,-532.96062647,0.00034176,30]
[402689956,1768805358073,-572.29537741,0.00034176,120]
[402689958,1768805358104,-168.97510339,0.00034176,120]
[402689961,1768805358134,-170.16507716,0.00034176,120]
[402689963,1768805358164,-837.84493171,0.00034176,30]
[402689965,1768805358194,-368.02162479,0.00034176,120]
[402689966,1768805358223,-288.74067906,0.00034176,120]
[402689968,1768805358252,-1741.50640021,0.00034176,120]
[402689970,1768805358279,-359.00934063,0.00034176,30]
[402689972,1768805358306,-3115.48217172,0.00034176,30]
[402689974,1768805358332,-2092.34369904,0.00034176,120]
[402689976,1768805358357,-1239.17993795,0.00034176,120]
[402689978,1768805358382,-3331.89015028,0.00034176,120]
[402689980,1768805358407,-1577.33744155,0.00034176,30]
[402689982,1768805358434,-1175.60115603,0.00034176,120]
[402689984,1768805358460,-334.34875526,0.00034176,30]
[402689986,1768805358487,-894.61308251,0.00034176,120]
[402689988,1768805358513,-1000.0,0.00034176,30]
[402689990,1768805358540,-370.76691419,0.00034176,120]
[402689992,1768805358567,-1845.79968674,0.00034176,120]
[402689994,1768805358594,-360.67229882,0.00034176,120]
[402689996,1768805358622,-2481.55644256,0.00034176,120]
[402689998,1768805358650,-178.68910239,0.00034176,120]
[402690000,1768805358676,-1036.50601108,0.00034176,60]
[402690002,1768805358704,-513.11118137,0.00034176,120]
[402690004,1768805358731,-512.65037131,0.00034176,120]
[402690006,1768805358760,-1218.01627105,0.00034176,120]
[402690008,1768805358787,-478.31475946,0.00034176,120]
[402690010,1768805358815,-2031.95694554,0.00034176,120]
[402690011,1768805358843,-2048.79974514,0.00034176,120]
[402690013,1768805358871,-2951.06774084,0.00034176,120]
[402690014,1768805358896,-163.83596501,0.00034176,120]
[402690015,1768805358920,-227.36395265,0.00034176,60]
[402690016,1768805358946,-1020.4774174,0.00034176,30]
[402690017,1768805358975,-246.39299589,0.00034176,30]
[402690018,1768805359005,-232.58557674,0.00034176,30]
[402690019,1768805359036,-341.04008766,0.00034176,30]
[402690020,1768805359065,-262.42038039,0.00034176,31]
[402690021,1768805359094,-797.89263284,0.00034176,120]
[402690022,1768805359124,-157.83239086,0.00034176,30]
[402690024,1768805359152,-1221.90653975,0.00034176,30]
[402690026,1768805359180,-975.296218,0.00034176,61]
[402690028,1768805359207,-3154.80403519,0.00034176,30]
[402690030,1768805359235,-1009.49368072,0.00034176,120]
[402690032,1768805359265,-2944.43567235,0.00034176,30]
[402690034,1768805359292,-1735.0,0.00034176,60]
[402690036,1768805359319,-5000.0,0.00034176,120]
[402690037,1768805359347,-5000.0,0.00034176,120]
[402690039,1768805359376,-5000.0,0.00034176,120]
[402690042,1768805359406,-1000.0,0.00034176,120]
[402690043,1768805359436,-1000.0,0.00034176,120]
[402690045,1768805359466,-1000.0,0.00034176,120]
[402690047,1768805359494,-1000.0,0.00034176,120]
[402690049,1768805359522,-1000.0,0.00034176,120]
[402690051,1768805359549,-1000.0,0.00034176,120]
[402690054,1768805359579,-1000.0,0.00034176,120]
[402690056,1768805359609,-1000.0,0.00034176,120]
[402690057,1768805359638,-3000.0,0.00034176,120]
[402690059,1768805359665,-3000.0,0.00034176,120]
[402690061,1768805359692,-3000.0,0.00034176,120]
[402690063,1768805359718,-3000.0,0.00034176,120]
[402690065,1768805359745,-3000.0,0.00034176,120]
[402690067,1768805359772,-3000.0,0.00034176,120]
[402690069,1768805359798,-3000.0,0.00034176,120]
[402690071,1768805359827,-3000.0,0.00034176,120]
[402690073,1768805359855,-3000.0,0.00034176,120]
[402690075,1768805359884,-3000.0,0.00034176,120]
[402690077,1768805359912,-3000.0,0.00034176,120]
[402690079,1768805359940,-2330.0,0.00034176,120]
[402690087,1768805360123,-3736.11961079,0.00034176,120]
[402690089,1768805360155,-13439.13471311,0.00034176,120]
[402690091,1768805360184,-12666.0,0.00034176,120]
[402690092,1768805360214,-18978.85094613,0.00034176,120]
[402690094,1768805360244,-4550.0,0.00034176,120]
[402690096,1768805360272,-25306.29837623,0.00034176,35]
[402690098,1768805360299,-12006.89,0.00034176,120]
[402690100,1768805360327,-51132.22196641,0.00034176,120]
[402690102,1768805360357,-155.09221156,0.00034176,30]
[402690104,1768805360386,-500.0,0.00034176,120]
[402690107,1768805360414,-500.75923791,0.00034176,120]
[402690108,1768805360443,-500.0,0.00034176,120]
[402690111,1768805360474,-500.0,0.00034176,120]
[402690112,1768805360501,-500.0,0.00034176,120]
[402690114,1768805360530,-501.09065672,0.00034176,120]
[402690116,1768805360557,-500.0,0.00034176,120]
[402690118,1768805360584,-500.0,0.00034176,120]
[402690120,1768805360611,-500.0,0.00034176,120]
[402690122,1768805360637,-500.0,0.00034176,120]
[402690124,1768805360665,-500.0,0.00034176,120]
[402690126,1768805360693,-500.0,0.00034176,120]
[402690128,1768805360721,-500.0,0.00034176,120]
[402690130,1768805360748,-410.427196,0.00034176,120]
[402690132,1768805360776,-500.0,0.00034176,120]
[402690134,1768805360804,-500.0,0.00034176,120]
[402690136,1768805360834,-193.5493717,0.00034176,120]
[402690138,1768805360861,-525.52990467,0.00034176,120]
[402690140,1768805360889,-910.27,0.00034176,120]
[402690142,1768805360917,-910.27,0.00034176,120]
[402690144,1768805360945,-910.27,0.00034176,120]
[402690146,1768805360973,-910.27,0.00034176,120]
[402690148,1768805361003,-910.27,0.00034176,120]
[402690150,1768805361033,-910.27,0.00034176,120]
[402690152,1768805361063,-910.27,0.00034176,120]
[402690154,1768805361092,-910.27,0.00034176,120]
[402690156,1768805361121,-644.78,0.00034176,120]
[402690158,1768805361151,-910.27,0.00034176,120]
[402690160,1768805361186,-644.78,0.00034176,120]
[402690162,1768805361217,-910.27,0.00034176,120]
[402690164,1768805361247,-644.78,0.00034176,120]
[402690166,1768805361276,-910.27,0.00034176,120]
[402690168,1768805361305,-644.78,0.00034176,120]
[402690170,1768805361333,-910.27,0.00034176,120]
[402690172,1768805361361,-644.78,0.00034176,120]
[402690174,1768805361388,-644.78,0.00034176,120]
[402690176,1768805361415,-644.78,0.00034176,120]
[402690178,1768805361443,-910.27,0.00034176,120]
[402690180,1768805361469,-644.78,0.00034176,120]
[402690182,1768805361496,-910.27,0.00034176,120]
[402690184,1768805361524,-644.78,0.00034176,120]
[402690186,1768805361552,-910.27,0.00034176,120]
[402690188,1768805361581,-644.78,0.00034176,120]
[402690190,1768805361607,-910.27,0.00034176,120]
[402690192,1768805361635,-644.78,0.00034176,120]
[402690194,1768805361661,-500.0,0.00034176,120]
[402690196,1768805361689,-500.0,0.00034176,120]
[402690198,1768805361717,-500.0,0.00034176,120]
[402690200,1768805361746,-500.0,0.00034176,120]
[402690202,1768805361776,-500.0,0.00034176,120]
[402690204,1768805361803,-500.0,0.00034176,120]
[402690206,1768805361835,-500.0,0.00034176,120]
[402690207,1768805361863,-500.0,0.00034176,120]
[402690208,1768805361891,-500.0,0.00034176,120]
[402690209,1768805361919,-500.0,0.00034176,120]
[402690210,1768805361946,-500.0,0.00034176,120]
[402690211,1768805361974,-500.0,0.00034176,120]
[402690212,1768805362000,-500.0,0.00034176,120]
[402690213,1768805362027,-500.0,0.00034176,120]
[402690214,1768805362055,-500.0,0.00034176,120]
[402690215,1768805362084,-500.0,0.00034176,120]
[402690217,1768805362112,-500.0,0.00034176,120]
[402690219,1768805362141,-500.0,0.00034176,120]
[402690221,1768805362170,-500.0,0.00034176,120]
[402690223,1768805362199,-500.0,0.00034176,120]
[402690225,1768805362228,-500.0,0.00034176,120]
[402690227,1768805362258,-500.0,0.00034176,120]
[402690229,1768805362288,-500.0,0.00034176,120]
[402690231,1768805362317,-221.87251699,0.00034176,120]
[402690233,1768805362345,-500.0,0.00034176,120]
[402690235,1768805362374,-500.0,0.00034176,120]
[402690237,1768805362404,-500.0,0.00034176,120]
[402690240,1768805362434,-500.0,0.00034176,120]
[402690241,1768805362463,-500.0,0.00034176,120]
[402690243,1768805362492,-500.0,0.00034176,120]
[402690246,1768805362520,-500.0,0.00034176,120]
[402690247,1768805362548,-500.0,0.00034176,120]
[402690249,1768805362576,-598.78351182,0.00034176,120]
[402690251,1768805362604,-500.0,0.00034176,120]
[402690253,1768805362633,-500.0,0.00034176,120]
[402690255,1768805362659,-500.0,0.00034176,120]
[402690257,1768805362686,-500.0,0.00034176,120]
[402690259,1768805362715,-500.0,0.00034176,120]
[402690262,1768805362752,-500.0,0.00034176,120]
[402690263,1768805362782,-500.0,0.00034176,120]
[402690266,1768805362815,-540.73100477,0.00034176,120]
[402690273,1768805362992,-500.0,0.00034176,120]
[402690275,1768805363025,-500.0,0.00034176,120]
[402690277,1768805363058,-500.0,0.00034176,120]
[402690279,1768805363087,-384.09013816,0.00034176,120]
[402690281,1768805363116,-500.0,0.00034176,120]
[402690283,1768805363145,-276.82012624,0.00034176,120]
[402690285,1768805363173,-500.0,0.00034176,120]
[402690287,1768805363202,-500.0,0.00034176,120]
[402690289,1768805363232,-500.0,0.00034176,120]
[402690290,1768805363263,-500.0,0.00034176,120]
[402690292,1768805363294,-500.0,0.00034176,120]
[402690294,1768805363322,-500.0,0.00034176,120]
[402690296,1768805363352,-500.0,0.00034176,120]
[402690298,1768805363380,-500.0,0.00034176,120]
[402690300,1768805363408,-500.0,0.00034176,120]
[402690302,1768805363437,-500.0,0.00034176,120]
[402690304,1768805363465,-500.0,0.00034176,120]
[402690306,1768805363492,-500.0,0.00034176,120]
[402690308,1768805363519,-500.0,0.00034176,120]
[402690310,1768805363546,-271.14772982,0.00034176,120]
[402690312,1768805363574,-501.42328403,0.00034176,120]
[402690314,1768805363602,-500.0,0.00034176,120]
[402690316,1768805363629,-501.34324392,0.00034176,120]
[402690318,1768805363656,-500.0,0.00034176,120]
[402690320,1768805363683,-500.0,0.00034176,120]
[402690322,1768805363710,-500.0,0.00034176,120]
[402690323,1768805363738,-500.0,0.00034176,120]
[402690325,1768805363766,-500.0,0.00034176,120]
[402690328,1768805363805,-500.0,0.00034176,120]
[402690330,1768805363850,-500.0,0.00034176,120]
[402690332,1768805363881,-500.0,0.00034176,120]
[402690333,1768805363912,-500.0,0.00034176,120]
[402690335,1768805363943,-500.0,0.00034176,120]
[402690337,1768805363972,-500.0,0.00034176,120]
[402690339,1768805364003,-500.0,0.00034176,120]
[402690341,1768805364034,-500.0,0.00034176,120]
[402690343,1768805364064,-500.0,0.00034176,120]
[402690345,1768805364095,-500.0,0.00034176,120]
[402690347,1768805364125,-500.0,0.00034176,120]
[402690349,1768805364155,-500.0,0.00034176,120]
[402690351,1768805364185,-161.91425716,0.00034176,120]
[402690353,1768805364215,-500.0,0.00034176,120]
[402690355,1768805364246,-500.0,0.00034176,120]
[402690357,1768805364278,-500.0,0.00034176,120]
[402690359,1768805364306,-500.0,0.00034176,120]
[402690361,1768805364334,-500.0,0.00034176,120]
[402690362,1768805364364,-500.0,0.00034176,120]
[402690364,1768805364392,-500.0,0.00034176,120]
[402690366,1768805364420,-500.0,0.00034176,120]
[402690368,1768805364448,-500.0,0.00034176,120]
[402690370,1768805364475,-500.0,0.00034176,120]
[402690372,1768805364502,-500.0,0.00034176,120]
[402690374,1768805364529,-500.0,0.00034176,120]
[402690376,1768805364558,-500.0,0.00034176,120]
[402690378,1768805364586,-500.0,0.00034176,120]
[402690380,1768805364613,-500.0,0.00034176,120]
[402690382,1768805364640,-500.0,0.00034176,120]
[402690384,1768805364668,-500.0,0.00034176,120]
[402690386,1768805364696,-500.0,0.00034176,120]
[402690388,1768805364724,-500.0,0.00034176,120]
[402690389,1768805364751,-396.45876351,0.00034176,120]
[402690391,1768805364779,-500.0,0.00034176,120]
[402690393,1768805364806,-500.0,0.00034176,120]
[402690395,1768805364837,-500.0,0.00034176,120]
[402690397,1768805364865,-500.0,0.00034176,120]
[402690399,1768805364893,-500.0,0.00034176,120]
[402690401,1768805364921,-500.0,0.00034176,120]
[402690402,1768805364948,-362.35,0.00034176,120]
[402690403,1768805364976,-717.49,0.00034176,120]
[402690404,1768805365003,-717.49,0.00034176,120]
[402690405,1768805365033,-717.49,0.00034176,120]
[402690406,1768805365062,-717.49,0.00034176,120]
[402690407,1768805365092,-717.49,0.00034176,120]
[402690408,1768805365123,-717.49,0.00034176,120]
[402690409,1768805365152,-717.49,0.00034176,120]
[402690410,1768805365182,-717.49,0.00034176,120]
[402690411,1768805365211,-717.49,0.00034176,120]
[402690412,1768805365241,-717.49,0.00034176,120]
[402690414,1768805365272,-717.49,0.00034176,120]
[402690416,1768805365300,-717.49,0.00034176,120]
[402690418,1768805365330,-717.49,0.00034176,120]
[402690420,1768805365359,-717.49,0.00034176,120]
[402690422,1768805365387,-717.49,0.00034176,120]
[402690424,1768805365415,-717.49,0.00034176,120]
[402690426,1768805365442,-717.49,0.00034176,120]
[402690428,1768805365470,-717.49,0.00034176,120]
[402690430,1768805365498,-717.49,0.00034176,120]
[402690432,1768805365525,-732.55,0.00034176,120]
[402690434,1768805365554,-717.49,0.00034176,120]
[402690436,1768805365582,-732.55,0.00034176,120]
[402690438,1768805365610,-717.49,0.00034176,120]
[402690440,1768805365637,-732.55,0.00034176,120]
[402690442,1768805365665,-717.49,0.00034176,120]
[402690443,1768805365692,-732.55,0.00034176,120]
[402690445,1768805365720,-732.55,0.00034176,120]
[402690452,1768805365891,-717.49,0.00034176,120]
[402690454,1768805365923,-732.55,0.00034176,120]
[402690456,1768805365954,-717.64694313,0.00034176,120]
[402690458,1768805365983,-732.55,0.00034176,120]
[402690460,1768805366011,-732.55,0.00034176,120]
[402690462,1768805366040,-732.55,0.00034176,120]
[402690464,1768805366068,-732.55,0.00034176,120]
[402690465,1768805366098,-732.55,0.00034176,120]
[402690467,1768805366129,-732.55,0.00034176,120]
[402690469,1768805366158,-732.55,0.00034176,120]
[402690471,1768805366189,-732.55,0.00034176,120]
[402690473,1768805366216,-500.0,0.00034176,120]
[402690475,1768805366245,-732.55,0.00034176,120]
[402690477,1768805366275,-500.0,0.00034176,120]
[402690479,1768805366304,-732.55,0.00034176,120]
[402690481,1768805366333,-500.0,0.00034176,120]
[402690483,1768805366361,-732.55,0.00034176,120]
[402690485,1768805366390,-500.0,0.00034176,120]
[402690487,1768805366419,-732.55,0.00034176,120]
[402690489,1768805366448,-500.0,0.00034176,120]
[402690491,1768805366477,-732.55,0.00034176,120]
[402690493,1768805366506,-500.0,0.00034176,120]
[402690494,1768805366538,-732.55,0.00034176,120]
[402690496,1768805366570,-500.0,0.00034176,120]
[402690499,1768805366600,-732.55,0.00034176,120]
[402690500,1768805366631,-500.0,0.00034176,120]
[402690502,1768805366662,-732.55,0.00034176,120]
[402690504,1768805366692,-500.0,0.00034176,120]
[402690506,1768805366723,-732.55,0.00034176,120]
[402690508,1768805366752,-500.0,0.00034176,120]
[402690510,1768805366782,-732.55390409,0.00034176,120]
[402690512,1768805366815,-500.0,0.00034176,120]
[402690514,1768805366843,-500.0,0.00034176,120]
[402690516,1768805366875,-500.0,0.00034176,120]
[402690518,1768805366906,-500.0,0.00034176,120]
[402690520,1768805366936,-500.0,0.00034176,120]
[402690522,1768805366967,-500.0,0.00034176,120]
[402690524,1768805366998,-320.1369616,0.00034176,120]
[402690526,1768805367029,-811.27,0.00034176,120]
[402690528,1768805367060,-811.27,0.00034176,120]
[402690530,1768805367092,-501.28453886,0.00034176,120]
[402690532,1768805367122,-811.27,0.00034176,120]
[402690534,1768805367151,-811.27,0.00034176,120]
[402690536,1768805367180,-811.27,0.00034176,120]
[402690537,1768805367209,-811.27,0.00034176,120]
[402690539,1768805367241,-811.27,0.00034176,120]
[402690541,1768805367272,-500.99677079,0.00034176,120]
[402690543,1768805367304,-811.27,0.00034176,120]
[402690545,1768805367335,-811.27,0.00034176,120]
[402690547,1768805367367,-811.27,0.00034176,120]
[402690549,1768805367399,-811.27,0.00034176,120]
[402690551,1768805367427,-811.27,0.00034176,120]
[402690553,1768805367455,-811.27,0.00034176,120]
[402690555,1768805367483,-811.27,0.00034176,120]
[402690557,1768805367512,-500.91216243,0.00034176,120]
[402690559,1768805367541,-811.27,0.00034176,120]
[402690561,1768805367572,-811.27,0.00034176,120]
[402690563,1768805367604,-811.27,0.00034176,120]
[402690565,1768805367634,-811.27,0.00034176,120]
[402690567,1768805367664,-811.27,0.00034176,120]
[402690569,1768805367693,-500.0,0.00034176,120]
[402690571,1768805367722,-811.27,0.00034176,120]
[402690573,1768805367749,-500.0,0.00034176,120]
[402690575,1768805367777,-811.27,0.00034176,120]
[402690577,1768805367804,-500.0,0.00034176,120]
[402690579,1768805367837,-811.27,0.00034176,120]
[402690580,1768805367867,-500.0,0.00034176,120]
[402690582,1768805367895,-811.27,0.00034176,120]
[402690584,1768805367924,-500.0,0.00034176,120]
[402690586,1768805367954,-811.44666994,0.00034176,120]
[402690588,1768805367985,-500.0,0.00034176,120]
[402690590,1768805368014,-500.0,0.00034176,120]
[402690592,1768805368045,-500.0,0.00034176,120]
[402690594,1768805368075,-200.0,0.00034176,120]
[402690596,1768805368108,-500.0,0.00034176,120]
[402690598,1768805368142,-500.0,0.00034176,120]
[402690600,1768805368177,-500.0,0.00034176,120]
[402690602,1768805368210,-500.0,0.00034176,120]
[402690603,1768805368240,-500.0,0.00034176,120]
[402690604,1768805368268,-500.0,0.00034176,120]
[402690605,1768805368297,-501.04835855,0.00034176,120]
[402690606,1768805368324,-500.0,0.00034176,120]
[402690607,1768805368353,-500.0,0.00034176,120]
[402690608,1768805368381,-500.0,0.00034176,120]
[402690609,1768805368410,-500.0,0.00034176,120]
[402690610,1768805368439,-155.33823981,0.00034176,120]
[402690612,1768805368468,-500.0,0.00034176,120]
[402690614,1768805368497,-500.0,0.00034176,120]
[402690616,1768805368525,-500.0,0.00034176,120]
[402690618,1768805368553,-189.71261491,0.00034176,120]
[402690620,1768805368582,-501.17715149,0.00034176,120]
[402690622,1768805368611,-500.0,0.00034176,120]
[402690624,1768805368639,-500.0,0.00034176,120]
[402690626,1768805368668,-501.55462991,0.00034176,120]
[402690628,1768805368697,-500.0,0.00034176,120]
[402690635,1768805368859,-500.0,0.00034176,120]
[402690637,1768805368889,-501.09149276,0.00034176,120]
[402690639,1768805368917,-645.99245678,0.00034176,120]
[402690641,1768805368949,-500.0,0.00034176,120]
[402690643,1768805368981,-500.0,0.00034176,120]
[402690644,1768805369011,-500.0,0.00034176,120]
[402690647,1768805369043,-500.0,0.00034176,120]
[402690649,1768805369076,-500.0,0.00034176,120]
[402690650,1768805369108,-487.52,0.00034176,120]
[402690653,1768805369141,-500.0,0.00034176,120]
[402690655,1768805369172,-501.57088913,0.00034176,120]
[402690657,1768805369205,-500.0,0.00034176,120]
[402690659,1768805369238,-500.0,0.00034176,120]
[402690660,1768805369270,-500.0,0.00034176,120]
[402690663,1768805369303,-501.14196509,0.00034176,120]
[402690665,1768805369336,-500.0,0.00034176,30]
[402690666,1768805369367,-500.0,0.00034176,120]
[402690668,1768805369398,-500.0,0.00034176,120]
[402690671,1768805369428,-500.0,0.00034176,120]
[402690673,1768805369460,-500.0,0.00034176,120]
[402690674,1768805369491,-500.0,0.00034176,120]
[402690677,1768805369521,-500.0,0.00034176,120]
[402690679,1768805369552,-500.0,0.00034176,120]
[402690680,1768805369579,-500.0,0.00034176,120]
[402690683,1768805369615,-500.0,0.00034176,120]
[402690685,1768805369652,-160.04347465,0.00034176,120]
[402690687,1768805369683,-500.40643181,0.00034176,120]
[402690689,1768805369714,-500.0,0.00034176,120]
[402690691,1768805369745,-500.0,0.00034176,120]
[402690693,1768805369775,-500.0,0.00034176,120]
[402690695,1768805369804,-500.0,0.00034176,120]
[402690697,1768805369837,-500.09398668,0.00034176,120]
[402690699,1768805369867,-314.72978156,0.00034176,30]
[402690701,1768805369898,-830.25,0.00034176,120]
[402690703,1768805369929,-830.25,0.00034176,120]
[402690706,1768805369962,-830.25,0.00034176,120]
[402690708,1768805369994,-830.25,0.00034176,120]
[402690710,1768805370025,-830.25,0.00034176,120]
[402690712,1768805370056,-830.25,0.00034176,120]
[402690713,1768805370087,-830.25,0.00034176,120]
[402690716,1768805370119,-830.25,0.00034176,120]
[402690718,1768805370150,-830.25,0.00034176,120]
[402690720,1768805370182,-830.25,0.00034176,120]
[402690722,1768805370214,-553.5,0.00034176,120]
[402690723,1768805370246,-830.25,0.00034176,120]
[402690725,1768805370278,-830.25,0.00034176,120]
[402690728,1768805370318,-553.5,0.00034176,120]
[402690730,1768805370351,-830.25,0.00034176,120]
[402690732,1768805370385,-830.25,0.00034176,120]
[402690734,1768805370418,-553.5,0.00034176,120]
[402690736,1768805370450,-830.25,0.00034176,120]
[402690738,1768805370482,-830.25,0.00034176,120]
[402690740,1768805370513,-553.5,0.00034176,120]
[402690742,1768805370543,-830.25,0.00034176,120]
[402690744,1768805370572,-553.5,0.00034176,120]
[402690746,1768805370601,-830.25,0.00034176,120]
[402690748,1768805370631,-553.5,0.00034176,120]
[402690751,1768805370662,-830.25,0.00034176,120]
[402690753,1768805370692,-553.5,0.00034176,120]
[402690755,1768805370722,-500.0,0.00034176,120]
[402690756,1768805370752,-501.02850784,0.00034176,120]
[402690759,1768805370786,-500.0,0.00034176,120]
[402690760,1768805370820,-500.43860507,0.00034176,120]
[402690763,1768805370852,-500.0,0.00034176,120]
[402690765,1768805370886,-291.23431375,0.00034176,120]
[402690767,1768805370918,-500.0,0.00034176,120]
[402690769,1768805370949,-500.0,0.00034176,120]
[402690770,1768805370982,-500.0,0.00034176,120]
[402690773,1768805371017,-500.0,0.00034176,120]
[402690775,1768805371051,-500.0,0.00034176,120]
[402690777,1768805371081,-500.0,0.00034176,120]
[402690779,1768805371114,-500.0,0.00034176,60]